[Event "FIDE WCCC U12 2018"]
[Site "Santiago de Compostela"]
[Date "2018.11.13"]
[Round "9"]
[White "Suleymanli, Suleyman"]
[Black "Razafindratsima, Timothe"]
[Result "0-1"]
[ECO "D86"]
[WhiteElo "1882"]
[BlackElo "2092"]
[Annotator "NA RC"]
[PlyCount "152"]
[EventDate "2018.11.04"]
[EventType "swiss"]
[EventCountry "ESP"]
[SourceTitle "playchess.com"]
[Source "ChessBase"]
[SourceQuality "1"]
[TimeControl "40/5400+30:1800+30"]

{[%evp 8,144,38,31,31,32767,33,13,32767,15,20,32767,23,10,10,4,18,-11,2,0,18,-49,32767,32767,32767,32767,32767,32767,32767,32767,32767,32767,32767,32767,32767,32767,32767,32767,32767,-96,32767,32767,-101,32767,32767,-107,32767,32767,-125,-112,32767,-83,-70,-85,-82,32767,32767,-94,-89,-74,-70,-96,32767,32767,32767,32767,-252,32767,32767,-311,-178,32767,32767,-270,-267,32767,-256,-324,32767,32767,-268,-279,-235,32767,-246,-354,-281,-393,-378,-2575,32767,-348,32767,-1788,-146,-141,32767,-227,-225,-336,-432,-986,-1270,-808,32767,32767,32767,32767,32767,32767,32767,-1868,32767,-4779,-1027,-29976,-29979,-12844,-29979,-29979,-12846,-29983,-29984,-29984,-29984,-29984,-29985,-29983,-29986,-29986,-29987,-29987,-29988,-29989,-29988,-29990,-29991,-29991,-29992]} 1. d4 {[%emt 0:00:00]} Nf6 {[%emt 0:00:00]} 2. c4 {[%emt 0:00:00]} g6 {[%emt 0:00:00]} 3. Nc3 {[%emt 0:00:00]} d5 {[%emt 0:00:00]} 4. cxd5 {[%emt 0:00:02]} Nxd5 {[%emt 0:00:00]} 5. e4 {[%emt 0:00:19]} Nxc3 {[%emt 0:00:00]} 6. bxc3 {[%emt 0:00:10]} Bg7 {[%emt 0:00:05]} 7. Bc4 {[%emt 0:00:35]} O-O {[%emt 0:01:33]} 8. Ne2 {[%emt 0:00:12]} Nc6 {[%emt 0:00:06]} 9. O-O {[%emt 0:01:32]} b6 {[%emt 0:00:21]} 10. Be3 {[%emt 0:00:51]} Na5 {[%emt 0:00:45]} 11. Bd3 {[%emt 0:01:02]} c5 {[%emt 0:01:48] LiveBook: 300 Games} 12. dxc5 {[%emt 0:07:32] D87: Grünfeldindisch (Abtauschvariante, Botwinnik-Variante)} (12. Rc1 e5 13. dxc5 Be6 14. c4 bxc5 15. Bxc5 Bh6 16. Rc3 Re8 17. Qc2 Qc7 18. Ba3 Rab8 19. h3 Red8 20. Bc1 {1-0 (70) Aronian,L (2764)-Mamedyarov,S (2808) Stavanger 2018}) 12... Qc7 {[%emt 0:00:56]} 13. cxb6 {[%emt 0:02:00]} axb6 {[%emt 0:00:05]} 14. Bd4 {[%emt 0:01:49]} (14. Nd4 $11) 14... e5 {[%emt 0:11:03]} 15. Be3 {[%emt 0:01:07]} Nc4 $146 {[%emt 0:03:23]} ({Vorgänger:} 15... Be6 16. Rb1 Nc4 17. Bxc4 Bxc4 18. Bxb6 Qc6 19. f3 Rfb8 {0-1 (33) Santos,C (2112)-Von Buelow,G (2390) Rio de Janeiro 2008}) 16. Qc1 {[%emt 0:07:33]} Be6 {[%emt 0:02:44]} 17. a3 {[%emt 0:07:40]} Rfd8 {[%emt 0:04:04]} 18. Bxc4 {[%emt 0:05:43]} Qxc4 {[%emt 0:02:51]} 19. Qc2 {[%emt 0:03:03]} b5 {[%emt 0:01:58]} 20. Rfe1 {[%emt 0:15:33]} Bf8 {[%emt 0:07:14]} 21. Bg5 {[%emt 0:06:10]} Rdc8 {[%emt 0:08:53]} 22. Bf6 {[%emt 0:07:43]} Qc5 {[%emt 0:09:32]} 23. Qb2 {[%emt 0:06:47]} Bc4 {[%emt 0:02:44]} 24. Ng3 {[%emt 0:07:20]} Rc6 {[%emt 0:06:53]} 25. Bg5 {[%emt 0:02:06]} Rca6 {[%emt 0:04:04]} 26. Be3 {[%emt 0:03:13]} Qc6 {[%emt 0:00:23]} 27. Red1 {[%emt 0:01:59]} Bxa3 {[%emt 0:06:51]} 28. Qd2 {[%emt 0:00:48]} Be7 {[%emt 0:01:54]} 29. Rxa6 {[%emt 0:00:47]} Qxa6 {[%emt 0:00:27]} 30. Bh6 {[%emt 0:03:02]} Qb6 {[%emt 0:06:04]} 31. h3 {[%emt 0:02:44]} f6 {[%emt 0:03:25]} 32. Qd7 {[%emt 0:02:28] [#]} Kf7 $1 {[%emt 0:00:51]} 33. Nf5 {[%emt 0:01:59]} gxf5 {[%emt 0:07:09]} 34. Qxf5 {[%emt 0:00:07]} Qe6 {[%emt 0:00:20]} 35. Qxh7+ {[%emt 0:00:27]} Ke8 {[%emt 0:00:07]} 36. Qg6+ {[%emt 0:01:56]} Qf7 {[%emt 0:00:06]} 37. Qg4 {[%emt 0:00:20]} Be6 {[%emt 0:02:16]} 38. Qe2 {[%emt 0:00:43]} Rb8 {[%emt 0:00:36]} 39. g4 {[%emt 0:00:48]} Qg6 {[%emt 0:01:05]} 40. Bc1 {[%emt 0:00:00]} Kf7 {[%emt 0:00:00]} 41. f4 {[%emt 0:04:08]} exf4 {[%emt 0:02:19]} 42. Bxf4 {[%emt 0:00:49]} Rh8 {[%emt 0:00:44]} 43. Kg2 {[%emt 0:00:52]} Rc8 {[%emt 0:04:33]} 44. Qf3 {[%emt 0:01:59]} Rc4 {[%emt 0:03:42]} 45. Rd4 {[%emt 0:02:09]} Ra4 {[%emt 0:03:59]} 46. Kg3 {[%emt 0:04:37]} Ra2 {[%emt 0:01:29]} 47. Qd3 {[%emt 0:00:34]} Rb2 {[%emt 0:05:02]} 48. Bd6 $2 {[%emt 0:08:18]} (48. Qf3) 48... Qg5 {[%emt 0:03:10]} 49. Bf4 {[%emt 0:01:12]} Qg8 {[%emt 0:05:49]} 50. Bd6 $2 {[%emt 0:03:41] [#]} (50. Qf3) 50... Rb3 $2 {[%emt 0:01:48]} (50... Bxg4 $1 $19 {[%mdl 512] has better winning chances.} 51. hxg4 Qh8) 51. e5 {[%emt 0:01:54]} f5 {[%emt 0:01:14]} 52. Rf4 $2 {[%emt 0:01:16]} (52. Bxe7 $15 Kxe7 53. Qe3) 52... Qc8 {[%emt 0:00:54]} 53. Rf3 {[%emt 0:00:27] [#]} b4 $1 {[%emt 0:06:08]} 54. gxf5 $2 {[%emt 0:03:45]} (54. Bxb4 Bxb4 55. gxf5) 54... Qg8+ {[%emt 0:00:06]} 55. Kf2 {[%emt 0:01:01]} Bh4+ {[%emt 0:00:33]} 56. Kf1 {[%emt 0:00:49]} Rb1+ {[%emt 0:02:31]} 57. Qxb1 {[%emt 0:00:09]} Bc4+ {[%emt 0:00:05]} 58. Rd3 {[%emt 0:00:06]} Qg5 {[%emt 0:01:20]} 59. Qd1 $2 {[%emt 0:02:03]} (59. e6+ $11 Ke8 60. f6 Qxf6+ 61. Kg2 Qg6+ 62. Kh2 Qxd3 63. Qxd3 Bxd3 64. cxb4) 59... Qxf5+ {[%emt 0:00:37]} 60. Kg1 {[%emt 0:01:21]} Bxd3 {[%emt 0:00:37]} 61. Qg4 {[%emt 0:00:34]} Qxg4+ {[%emt 0:00:19]} 62. hxg4 {[%emt 0:00:09]} bxc3 {[%emt 0:00:11]} 63. Bb4 {[%emt 0:00:21]} Be1 {[%emt 0:00:21]} 64. Bxc3 {[%emt 0:00:06]} Bxc3 {[%emt 0:00:06]} 65. Kf2 {[%emt 0:00:07]} Bxe5 {[%emt 0:00:07]} 66. Ke3 {[%emt 0:00:05]} Bg6 {[%emt 0:00:10]} 67. g5 {[%emt 0:00:05]} Ke6 {[%emt 0:00:04]} 68. Kf3 {[%emt 0:00:06]} Kf5 {[%emt 0:00:12]} 69. Ke3 {[%emt 0:00:05]} Kxg5 {[%emt 0:00:05]} 70. Kf3 {[%emt 0:00:06]} Bd4 {[%emt 0:00:14]} 71. Kg3 {[%emt 0:00:15]} Be4 {[%emt 0:00:07]} 72. Kh3 {[%emt 0:00:10]} Kf4 {[%emt 0:00:15]} 73. Kh4 {[%emt 0:00:16]} Bg6 {[%emt 0:00:06]} 74. Kh3 {[%emt 0:00:09]} Kf3 {[%emt 0:00:01]} 75. Kh2 {[%emt 0:00:11]} Bf5 {[%emt 0:00:07]} 76. Kh1 {[%emt 0:00:07]} Kf2 {[%emt 0:00:04]} 0-1

[Event "FIDE WCCC U12 2018"]
[Site "Santiago de Compostela"]
[Date "2018.11.13"]
[Round "9"]
[White "Ermachenko, Manuel"]
[Black "Mekhane, Adam"]
[Result "0-1"]
[ECO "C75"]
[WhiteElo "1862"]
[BlackElo "2065"]
[Annotator "NA RC"]
[PlyCount "94"]
[EventDate "2018.11.04"]
[EventType "swiss"]
[EventCountry "ESP"]
[SourceTitle "playchess.com"]
[Source "ChessBase"]
[SourceQuality "1"]
[TimeControl "40/5400+30:1800+30"]

1. e4 e5 2. Nf3 Nc6 3. Bb5 a6 4. Ba4 d6 5. c3 Bd7 6. O-O g6 7. d3 Bg7 {LiveBook: 5 Games} 8. Nbd2 {C72: Ruy Lopez: Deferred Steinitz: 5 0-0} Nge7 9. b4 O-O (9... b5 $5 {[%cal Rb5a4]} 10. Bc2 a5 $11) 10. Bb3 h6 $146 ({Predecessor:} 10... Kh8 11. Bb2 Ng8 12. d4 f5 13. d5 Nce7 14. c4 f4 15. c5 h6 {0-1 (40) Pabalan,R (2136)-Sharif,M (2425) Sharjah 2016}) 11. Re1 Kh7 12. Bb2 f5 13. h3 f4 14. a3 g5 15. Nh2 Qe8 16. Rc1 Qg6 17. f3 h5 18. Qe2 Ng8 19. Qf2 Nh6 20. Bd1 Bf6 21. d4 Rg8 22. Kf1 Rg7 23. Ke2 Ne7 24. Kd3 Nd5 25. Nhf1 exd4 (25... Nb6 $17 26. Bb3 g4 27. hxg4 hxg4) 26. cxd4 Bb5+ 27. Nc4 $2 (27. Kc2 $11 {and White is okay.}) 27... Nb6 28. a4 Bxc4+ 29. Rxc4 Nxc4 30. Kxc4 Qf7+ 31. Kd3 {[#]} b5 ({Better is} 31... c5 $1 $19 32. bxc5 dxc5) 32. Qc2 Qd7 33. a5 Rc8 34. Ke2 Kh8 35. Qd3 (35. Qd2 $17) 35... g4 36. Bc2 $2 (36. hxg4 hxg4 37. Nd2 gxf3+ 38. Qxf3) 36... gxh3 37. gxh3 Re8 38. Kd1 Qxh3 39. Nd2 {[#]} Nf7 (39... Nf5 $142 $1 {[%mdl 512]} 40. Bc3 (40. exf5 Rxe1+) 40... Bh4) 40. e5 Bh4 41. e6 $2 (41. Rf1) 41... Rxe6 42. Rf1 d5 43. Qc3 Nd6 44. Qc6 Nc4 45. Qa8+ Rg8 46. Qxd5 {[#]} Qxf1+ $1 47. Nxf1 Re1# 0-1

[Event "FIDE WCCC U12 2018"]
[Site "Santiago de Compostela"]
[Date "2018.11.13"]
[Round "9"]
[White "Sethuraman, Sandeep"]
[Black "Silich, Yahor"]
[Result "1-0"]
[ECO "A53"]
[WhiteElo "1837"]
[BlackElo "2058"]
[Annotator "NA RC"]
[PlyCount "99"]
[EventDate "2018.11.04"]
[EventType "swiss"]
[EventCountry "ESP"]
[SourceTitle "playchess.com"]
[Source "ChessBase"]
[SourceQuality "1"]
[TimeControl "40/5400+30:1800+30"]

1. d4 {[%emt 0:00:00]} Nf6 {[%emt 0:00:00]} 2. c4 {[%emt 0:00:00]} d6 {[%emt 0:00:00]} 3. Nc3 {[%emt 0:00:00]} Nbd7 {[%emt 0:00:00]} 4. Nf3 {[%emt 0:00:00]} g6 {[%emt 0:00:07] LiveBook: 482 Games} 5. Bf4 {[%emt 0:00:00]} Bg7 {[%emt 0:00:31]} 6. e3 {[%emt 0:00:08] E61: King's Indian: Early deviations for White, including Smyslov System} (6. h3 O-O 7. e3 a6 8. Be2 c6 9. O-O b5 10. Rc1 bxc4 11. Bxc4 Nb6 12. Be2 Nbd5 13. Nxd5 Nxd5 14. Bh2 Qb6 15. e4 Nc7 16. e5 d5 17. Qc2 Bd7 18. Bf4 {½-½ (71) Papaioannou,I (2597)-Nikolaidis,I (2557) Achaea 2012}) 6... Nh5 {[%emt 0:00:43]} 7. Bg5 {[%emt 0:00:10]} h6 {[%emt 0:00:49]} 8. Bh4 {[%emt 0:00:06]} g5 {[%emt 0:01:26]} 9. Nd2 {[%emt 0:00:32]} Ndf6 {[%emt 0:03:19]} 10. Be2 {[%emt 0:00:44]} gxh4 {[%emt 0:01:35]} 11. Bxh5 {[%emt 0:00:08]} c6 $146 {[%emt 0:10:11]} ({Predecessor:} 11... Nxh5 12. Qxh5 e5 13. dxe5 Bxe5 {0-1 (31) Barle,J (2400)-Sebenik,M (2465) Ljubljana 2007}) 12. Bf3 {[%emt 0:10:57]} Be6 {[%emt 0:10:42]} 13. d5 {[%emt 0:08:38]} Bd7 {[%emt 0:06:13]} 14. Qb3 {[%emt 0:05:05]} Qb6 {[%emt 0:04:44]} 15. Qxb6 {[%emt 0:07:46]} axb6 {[%emt 0:00:04]} 16. h3 {[%emt 0:00:41]} O-O {[%emt 0:06:04]} 17. O-O {[%emt 0:04:54]} Rfc8 {[%emt 0:01:53]} 18. a3 {[%emt 0:07:51]} Nh7 {[%emt 0:13:47]} 19. Rfc1 {[%emt 0:03:08]} Nf8 {[%emt 0:01:32]} 20. Be4 {[%emt 0:04:30]} Ng6 {[%emt 0:06:08]} 21. Rc2 {[%emt 0:02:49]} e5 {[%emt 0:08:00]} (21... f5 $11 22. Bf3 f4) 22. dxc6 {[%emt 0:08:13]} bxc6 {[%emt 0:00:41]} 23. Bxg6 {[%emt 0:00:23]} fxg6 {[%emt 0:00:10]} 24. Nde4 {[%emt 0:00:12]} d5 {[%emt 0:04:50]} 25. cxd5 {[%emt 0:00:41]} cxd5 {[%emt 0:00:08]} 26. Rd2 {[%emt 0:00:32]} d4 {[%emt 0:11:31]} 27. Nd5 {[%emt 0:02:09]} Rd8 {[%emt 0:01:02]} 28. Nxb6 {[%emt 0:00:56]} Rab8 {[%emt 0:00:41]} 29. Nxd7 {[%emt 0:01:16]} Rxd7 {[%emt 0:00:01]} 30. b4 {[%emt 0:01:24]} Ra7 {[%emt 0:00:22]} 31. Raa2 {[%emt 0:02:53]} Rb6 {[%emt 0:01:22]} 32. Nc5 {[%emt 0:03:23]} Kf7 {[%emt 0:01:03]} 33. e4 {[%emt 0:03:39]} (33. Kf1 $18) 33... Bf8 {[%emt 0:02:15]} 34. Nd3 {[%emt 0:08:54]} Bd6 {[%emt 0:01:07]} 35. Rdb2 {[%emt 0:00:53]} Ra4 {[%emt 0:00:20]} 36. Rb3 {[%emt 0:00:30]} Ke6 {[%emt 0:00:21] [#]} 37. Nb2 $1 {[%emt 0:01:34]} Ra8 {[%emt 0:01:12]} 38. b5 {[%emt 0:01:21]} Rb7 {[%emt 0:00:47]} 39. a4 {[%emt 0:00:30]} Rba7 {[%emt 0:00:30]} (39... Rab8 $142 40. Nc4 Rc8) 40. b6 {[%emt 0:00:00]} Rb7 {[%emt 0:00:00]} 41. a5 {[%emt 0:04:06]} Bc5 {[%emt 0:02:11]} 42. Nd3 {[%emt 0:00:47]} Bd6 {[%emt 0:00:52]} 43. a6 {[%emt 0:00:44]} Kd7 {[%emt 0:00:15]} 44. Nc5+ {[%emt 0:00:08]} Bxc5 {[%emt 0:00:30]} 45. axb7 {[%emt 0:04:00]} Rb8 {[%emt 0:00:00]} 46. Ra8 {[%emt 0:00:41]} Rxb7 {[%emt 0:01:14]} 47. Rg8 {[%emt 0:00:17]} Rxb6 {[%emt 0:00:41]} 48. Rg7+ {[%emt 0:00:09]} Ke8 {[%emt 0:00:01]} 49. Rxb6 {[%emt 0:00:13]} Bxb6 50. Rxg6 $18 1-0

[Event "FIDE WCCC U12 2018"]
[Site "Santiago de Compostela"]
[Date "2018.11.13"]
[Round "9"]
[White "Yavuz, Efe Metehan"]
[Black "Tian, Eddy"]
[Result "1-0"]
[ECO "B49"]
[WhiteElo "1828"]
[BlackElo "2151"]
[Annotator "ChessBase"]
[PlyCount "86"]
[EventDate "2018.11.04"]
[EventType "swiss"]
[EventCountry "ESP"]
[SourceTitle "playchess.com"]
[Source "ChessBase"]
[SourceQuality "1"]
[TimeControl "40/5400+30:1800+30"]

1. e4 {[%emt 0:00:00]} c5 {[%emt 0:00:00]} 2. Nf3 {[%emt 0:00:00]} e6 {[%emt 0:00:00]} 3. d4 {[%emt 0:10:38]} cxd4 {[%emt 0:00:06]} 4. Nxd4 {[%emt 0:00:06]} Nc6 {[%emt 0:00:05]} 5. Nc3 {[%emt 0:00:37]} Qc7 {[%emt 0:00:09]} 6. Be3 {[%emt 0:01:22]} a6 {[%emt 0:00:06]} 7. Be2 {[%emt 0:00:46]} Nf6 {[%emt 0:00:41]} 8. O-O {[%emt 0:00:23]} Be7 {[%emt 0:00:37]} 9. Qd2 {[%emt 0:01:05]} O-O {[%emt 0:00:55]} 10. Kh1 {[%emt 0:00:52]} d6 {[%emt 0:01:29]} 11. f4 {[%emt 0:00:22]} Rd8 {[%emt 0:03:30]} 12. Bf3 {[%emt 0:01:46]} Na5 {[%emt 0:01:57]} 13. b3 {[%emt 0:03:59]} Bd7 {[%emt 0:09:34]} 14. Nce2 {[%emt 0:07:22]} e5 {[%emt 0:00:55]} 15. c4 {[%emt 0:30:31]} exd4 {[%emt 0:00:17]} 16. Bxd4 {[%emt 0:00:09]} Nc6 {[%emt 0:01:42]} 17. Bb2 {[%emt 0:01:14]} Rac8 {[%emt 0:02:20]} 18. Nc3 Re8 {[%emt 0:04:41]} 19. h3 {[%emt 0:01:22]} h5 {[%emt 0:03:27]} 20. g4 {[%emt 0:03:09]} h4 {[%emt 0:09:20]} 21. Rg1 {[%emt 0:02:32]} Qa5 {[%emt 0:05:19]} 22. a3 {[%emt 0:01:29]} Qb6 {[%emt 0:01:05]} 23. b4 {[%emt 0:04:47]} Be6 {[%emt 0:04:47]} 24. g5 {[%emt 0:00:51]} Nd7 {[%emt 0:01:41]} 25. c5 {[%emt 0:02:00]} dxc5 {[%emt 0:01:38]} 26. f5 {[%emt 0:00:23]} Bc4 {[%emt 0:01:44]} 27. f6 {[%emt 0:02:12]} Nde5 {[%emt 0:01:12]} 28. Bh5 {[%emt 0:02:55]} g6 {[%emt 0:03:35]} 29. fxe7 {[%emt 0:00:30]} gxh5 {[%emt 0:01:16]} 30. g6 {[%emt 0:01:20]} f6 {[%emt 0:03:29]} 31. Qh6 {[%emt 0:00:51]} Rxe7 {[%emt 0:00:23]} 32. g7 {[%emt 0:04:13]} Nf7 {[%emt 0:00:19]} 33. Qxf6 {[%emt 0:03:27]} cxb4 {[%emt 0:04:13]} 34. Nd5 {[%emt 0:01:09]} Bxd5 {[%emt 0:01:17]} 35. exd5 {[%emt 0:00:10]} Qe3 {[%emt 0:00:46]} 36. Kh2 {[%emt 0:03:03]} Qd2+ {[%emt 0:00:42]} 37. Rg2 {[%emt 0:00:57]} Qxd5 {[%emt 0:00:41]} 38. Kh1 {[%emt 0:00:35]} Rce8 {[%emt 0:00:38]} 39. Rag1 {[%emt 0:03:15]} bxa3 {[%emt 0:01:12]} 40. Bxa3 {[%emt 0:00:00]} Re3 {[%emt 0:00:00]} 41. Rf1 {[%emt 0:02:25]} Rxa3 {[%emt 0:00:53]} 42. Rf4 {[%emt 0:01:44]} Rxh3+ {[%emt 0:00:11]} 43. Kg1 {[%emt 0:00:06]} Rg3 {[%emt 0:00:17]} 1-0

[Event "FIDE WCCC U12 2018"]
[Site "Santiago de Compostela"]
[Date "2018.11.13"]
[Round "9"]
[White "Del Prado Rodriguez, Xulio"]
[Black "Samadov, Read"]
[Result "0-1"]
[ECO "A13"]
[WhiteElo "1734"]
[BlackElo "2029"]
[Annotator "NA RC"]
[PlyCount "92"]
[EventDate "2018.11.04"]
[EventType "swiss"]
[EventCountry "ESP"]
[SourceTitle "playchess.com"]
[Source "ChessBase"]
[SourceQuality "1"]
[TimeControl "40/5400+30:1800+30"]

1. Nf3 {[%emt 0:00:00]} e6 {[%emt 0:00:00]} 2. c4 {[%emt 0:00:34]} d5 {[%emt 0:00:01]} 3. d4 {[%emt 0:00:25]} Nf6 {[%emt 0:00:22]} 4. g3 {[%emt 0:00:57]} dxc4 {[%emt 0:01:04]} 5. Qa4+ {[%emt 0:01:19]} c6 {[%emt 0:00:40]} 6. Qxc4 {[%emt 0:00:38]} b5 {[%emt 0:00:23]} 7. Qc2 {[%emt 0:01:56]} Bb7 {[%emt 0:00:51]} 8. Bg2 {[%emt 0:00:33]} Nbd7 {[%emt 0:01:16]} 9. O-O {[%emt 0:04:45]} c5 {[%emt 0:03:06]} 10. dxc5 {[%emt 0:01:20]} Bxc5 {[%emt 0:01:12] LiveBook: 42 Games} 11. Bg5 {[%emt 0:04:54] D30: Queen's Gambit Declined: Systems without Nc3} Rc8 {[%emt 0:04:32]} 12. Qb3 {[%emt 0:01:12]} b4 $146 {[%emt 0:07:31]} ({Predecessor:} 12... a6 13. a4 b4 14. Nbd2 {1-0 (32) Lalith,B (2587)-Zhigalko,S (2671) Doha 2016}) 13. Nfd2 {[%emt 0:03:37]} Bxg2 {[%emt 0:05:29]} 14. Kxg2 {[%emt 0:00:10]} Qc7 {[%emt 0:04:04]} 15. Nf3 {[%emt 0:03:02]} O-O {[%emt 0:08:20]} 16. Nbd2 {[%emt 0:02:39]} a5 {[%emt 0:05:24]} 17. a3 {[%emt 0:04:34]} bxa3 {[%emt 0:06:10]} 18. bxa3 {[%emt 0:02:13]} Qa7 {[%emt 0:03:17]} 19. a4 {[%emt 0:03:11]} Bb4 {[%emt 0:04:36]} 20. Rac1 {[%emt 0:03:16]} Nc5 {[%emt 0:03:52]} ({Don't play} 20... Rxc1 $6 21. Rxc1 Qa8 22. Rc7 $15) 21. Qa2 {[%emt 0:00:16] [#]} Nd5 $1 {[%emt 0:02:15]} 22. Qa1 {[%emt 0:05:59]} (22. Rc4 $17 {was necessary.}) 22... Qd7 {[%emt 0:06:08]} 23. Nc4 {[%emt 0:06:21]} Qxa4 {[%emt 0:03:24]} 24. Qxa4 {[%emt 0:00:10]} Nxa4 {[%emt 0:00:05]} 25. Ra1 {[%emt 0:00:52]} Rxc4 {[%emt 0:03:14]} 26. Rxa4 {[%emt 0:00:04]} Nc3 {[%emt 0:00:33]} 27. Raa1 {[%emt 0:00:58]} Nxe2 {[%emt 0:01:27]} 28. Bd2 {[%emt 0:00:48]} Nc3 {[%emt 0:05:54]} 29. Ne5 {[%emt 0:01:29]} Rc7 {[%emt 0:01:53]} 30. Nd3 {[%emt 0:01:11]} Rd8 {[%emt 0:01:21]} 31. Nxb4 {[%emt 0:00:27]} axb4 {[%emt 0:00:09]} 32. Bxc3 {[%emt 0:00:33]} bxc3 {[%emt 0:00:29]} 33. Rfc1 {[%emt 0:00:06]} c2 {[%emt 0:00:40]} 34. Ra2 {[%emt 0:00:07]} Rdc8 {[%emt 0:00:09]} 35. Kf3 {[%emt 0:00:20]} f6 {[%emt 0:00:40]} 36. Ke2 {[%emt 0:00:10]} Kf7 {[%emt 0:01:01]} 37. Kd2 {[%emt 0:00:16]} Kg6 {[%emt 0:00:08]} 38. Raxc2 {[%emt 0:00:16]} Rxc2+ {[%emt 0:00:08]} 39. Rxc2 {[%emt 0:00:05]} Rxc2+ {[%emt 0:00:06]} 40. Kxc2 {[%emt 0:00:00]} Kf5 {[%emt 0:00:00]} 41. f3 {[%emt 0:00:26]} Ke5 {[%emt 0:04:25]} 42. Kd3 {[%emt 0:00:13]} Kd5 {[%emt 0:00:32]} 43. Ke3 {[%emt 0:00:17]} e5 {[%emt 0:01:12]} 44. Kd3 $19 {[%emt 0:00:35]} f5 {[%emt 0:00:10]} 45. Ke3 {[%emt 0:00:09]} e4 {[%emt 0:00:28]} 46. fxe4+ {[%emt 0:00:07]} fxe4 {[%emt 0:00:02]} 0-1

[Event "FIDE WCCC U12 2018"]
[Site "Santiago de Compostela"]
[Date "2018.11.14"]
[Round "10"]
[White "Razafindratsima, Timothe"]
[Black "Chen, Max"]
[Result "1-0"]
[ECO "B06"]
[WhiteElo "2092"]
[BlackElo "1910"]
[Annotator "NA RC"]
[PlyCount "117"]
[EventDate "2018.11.04"]
[EventType "swiss"]
[EventCountry "ESP"]
[SourceTitle "playchess.com"]
[Source "ChessBase"]
[SourceQuality "1"]
[TimeControl "40/5400+30:1800+30"]

{[%evp 16,114,46,32767,33,32767,32767,32767,32767,32767,43,58,51,39,50,13,18,33,51,35,45,55,82,86,32767,83,32767,85,32767,32767,89,89,86,88,86,82,83,85,96,96,97,87,110,111,32767,111,139,95,32767,32767,32767,32767,32767,222,234,276,224,250,248,287,256,290,310,32767,357,456,580,791,32767,1585,697,1740,32767,5503,5106,29955,9122,29979,29977,29982,12353,29983,29976,29985,32767,12847,29986,32767,32767,29988,32767,32767,32767,29992,32767,32767,32767,29994,29995,685,29995]} 1. e4 {[%emt 0:00:00]} g6 {[%emt 0:00:18]} 2. d4 {[%emt 0:00:12]} Bg7 {[%emt 0:00:22]} 3. Nc3 {[%emt 0:00:11]} c6 {[%emt 0:00:35]} 4. Nf3 {[%emt 0:01:27]} d5 {[%emt 0:01:32]} 5. h3 {[%emt 0:00:14]} Nf6 {[%emt 0:00:37]} 6. e5 {[%emt 0:00:16]} Ne4 {[%emt 0:00:12]} 7. Nxe4 {[%emt 0:00:15]} dxe4 {[%emt 0:00:14]} 8. Ng5 {[%emt 0:00:05]} c5 {[%emt 0:00:47] LiveBook: 255 Partien} 9. dxc5 {[%emt 0:00:11]} Qa5+ {[%emt 0:02:14]} 10. c3 {[%emt 0:00:07] B15: Caro-Kann: 3 Nc3: 3...g6 and 3...dxe4 4 Nxe4 Nf6 5 Nxf6+ exf6} Qxc5 {[%emt 0:02:35]} 11. Qd4 $146 {[%emt 0:00:05]} ({Predecessor:} 11. Be3 Qxe5 12. Bc4 e6 13. Qc2 Bd7 14. Qxe4 Bc6 15. Qxe5 Bxe5 16. O-O Nd7 17. Rad1 Ke7 {½-½ (29) Bures,J (2485)-Banet,J (2487) ICCF email 2010}) 11... Qxe5 {[%emt 0:03:57]} 12. Qc4 {[%emt 0:00:06]} Be6 $1 {[%emt 0:15:21]} 13. Nxe6 {[%emt 0:00:45]} Qxe6 {[%emt 0:03:31]} 14. Qxe6 {[%emt 0:01:55]} fxe6 {[%emt 0:00:15]} 15. Bc4 {[%emt 0:00:35]} Kf7 {[%emt 0:07:18]} 16. Bf4 {[%emt 0:05:11]} Nd7 {[%emt 0:03:22]} 17. O-O-O {[%emt 0:03:01]} Nc5 {[%emt 0:06:19]} 18. Be3 {[%emt 0:04:55]} Rac8 {[%emt 0:12:16]} 19. Rhe1 {[%emt 0:08:54]} Nd3+ {[%emt 0:01:56]} 20. Bxd3 {[%emt 0:00:44]} exd3 {[%emt 0:00:07]} 21. Rxd3 {[%emt 0:00:17]} Rhd8 {[%emt 0:07:44]} 22. Red1 {[%emt 0:11:12]} Rxd3 {[%emt 0:00:28]} 23. Rxd3 {[%emt 0:00:10]} a6 {[%emt 0:01:05]} 24. Rd7 {[%emt 0:01:33]} b5 {[%emt 0:00:45]} 25. Kd2 {[%emt 0:03:22]} Rc6 {[%emt 0:03:44]} 26. Rb7 {[%emt 0:02:14]} e5 {[%emt 0:05:08]} 27. Kd3 {[%emt 0:12:42]} Ke6 {[%emt 0:02:08]} 28. f3 {[%emt 0:00:23]} Bf6 {[%emt 0:02:36]} 29. Rb6 {[%emt 0:07:09]} Rd6+ {[%emt 0:07:47]} 30. Ke4 {[%emt 0:01:16]} Kd7 {[%emt 0:02:55]} 31. b3 {[%emt 0:08:50]} Kc7 {[%emt 0:01:07]} 32. Rxd6 {[%emt 0:00:07]} exd6 {[%emt 0:00:23]} 33. Kd5 {[%emt 0:00:10]} Kd7 {[%emt 0:00:28]} 34. c4 {[%emt 0:00:18]} bxc4 {[%emt 0:00:27]} 35. bxc4 {[%emt 0:00:06]} Be7 {[%emt 0:01:09]} 36. c5 {[%emt 0:01:32]} dxc5 {[%emt 0:01:34]} 37. Bxc5 {[%emt 0:00:26]} ({Schlechter ist} 37. Kxe5 Kc6 $11) 37... Bf6 {[%emt 0:00:12]} 38. Bd6 {[%emt 0:00:05]} Bh4 {[%emt 0:01:03]} 39. Bxe5 {[%emt 0:00:22]} Bf2 {[%emt 0:00:14]} 40. f4 {[%emt 0:00:00]} Bg3 $2 {[%emt 0:00:00] [#]} (40... h5 {is more resistant.} 41. g4 Ke7) 41. f5 $1 {[%emt 0:05:54]} Be1 {[%emt 0:05:19]} 42. f6 {[%emt 0:01:04]} Bb4 {[%emt 0:02:38]} 43. Bd4 {[%emt 0:00:25]} h5 {[%emt 0:04:50]} 44. Bc5 {[%emt 0:01:46]} Bxc5 {[%emt 0:00:18]} 45. Kxc5 {[%emt 0:00:05]} Ke6 {[%emt 0:00:04]} 46. Kb6 {[%emt 0:00:25]} Kxf6 {[%emt 0:00:09]} 47. Kxa6 {[%emt 0:00:05]} Kf5 {[%emt 0:00:16]} 48. Kb6 {[%emt 0:00:35]} Kf4 {[%emt 0:00:07]} 49. a4 {[%emt 0:00:11]} Kg3 {[%emt 0:00:07]} 50. a5 {[%emt 0:00:04]} Kxg2 {[%emt 0:00:04]} 51. a6 {[%emt 0:00:09]} Kxh3 {[%emt 0:00:09]} 52. a7 {[%emt 0:00:04]} g5 {[%emt 0:00:20]} 53. a8=Q {[%emt 0:00:13]} Kh4 {[%emt 0:00:14]} 54. Kc5 {[%emt 0:00:31]} g4 {[%emt 0:00:17]} 55. Kd4 {[%emt 0:00:11]} Kg3 {[%emt 0:00:07]} 56. Qh1 {[%emt 0:00:43]} h4 {[%emt 0:00:07]} 57. Ke3 {[%emt 0:00:06]} (57. Ke4 $142 h3 58. Qg1+ Kh4 59. Kf5 g3 60. Qd4+ Kh5 61. Qh8#) 57... h3 {[%emt 0:00:06]} 58. Qg1+ {[%emt 0:00:03]} Kh4 {[%emt 0:00:10]} 59. Ke4 1-0